Cogmind - Beta 14 @@@ ROGUE MODE // 2024.09.18 @ 21:21:32 Player: KURIIRI Result: Self-destructed Performance ------------- Evolutions (1) 500 Regions Visited (2) 400 Robots Destroyed (43) 215 Value Destroyed (1152) 1152 Prototype IDs (3) 60 Alien Tech Used (0) 0 Bonus (0) 0 TOTAL SCORE: 2327 Bonus ------- None Cogmind --------- Core Integrity 286/400 Matter 259/300 Energy 102/280 System Corruption 10% Temperature Warm (185) Movement Treading (240) Ox1 Location -9/Materials Parts ------- > --- POWER (1) -------- Heavy Ion Engine > --- PROPULSION (3) --- Light Treads > --- UTILITY (3) ------ Large Storage Unit Structural Scanner Light Armor Plating > --- WEAPON (2) ------- Heavy EM Pulse Gun Heavy Assault Rifle > --- INVENTORY (15) --- Ion Engine Light Treads Light Treads Compact Wheel Medium Battery (150) Large Matter Pod (150) Signal Interpreter Improved EM Shotgun Improved EM Shotgun Improved EM Shotgun Grenade Launcher Mining Laser Peak State ------------ > --- POWER ------------ Heavy Ion Engine > --- PROPULSION ------- Light Treads Light Treads > --- UTILITY ---------- Large Storage Unit Structural Scanner Light Armor Plating > --- WEAPON ----------- Improved EM Shotgun Improved EM Shotgun > --- INVENTORY -------- Ion Engine Light Treads Light Treads Compact Wheel Medium Battery Large Matter Pod Signal Interpreter Improved EM Shotgun Heavy Assault Rifle Grenade Launcher Mining Laser [Rating: 15] Favorites ----------- Power Light Ion Engine Engine Light Ion Engine Propulsion Light Treads Treads Light Treads Utility Light Armor Plating Device Structural Scanner Storage Small Storage Unit Protection Light Armor Plating Weapon Beam Cannon Energy Gun Improved EM Shotgun Energy Cannon Beam Cannon Ballistic Gun Assault Rifle Build | -11 -10 -9 ------- Run | Yrd Mat Mat Slots Evolved 2 | . . 2 Power . | . . . Propulsion 1 | . . 1 Utility 1 | . . 1 Weapon . | . . . Parts Attached 31 | 7 9 15 Power 6 | 2 2 2 Engine 6 | 2 2 2 Core . | . . . Reactor . | . . . Propulsion 6 | 2 1 3 Treads 6 | 2 1 3 Leg . | . . . Wheel . | . . . Hover . | . . . Flight . | . . . Utility 8 | 1 4 3 Device 2 | . 1 1 Storage 3 | 1 1 1 Processor . | . . . Hackware . | . . . Protection 3 | . 2 1 Artifact . | . . . Weapon 11 | 2 2 7 Energy Gun 6 | . 1 5 Energy Cannon 1 | . 1 . Ballistic Gun 4 | 2 . 2 Ballistic Cannon . | . . . Launcher . | . . . Special Weapon . | . . . Impact Weapon . | . . . Slashing Weapon . | . . . Piercing Weapon . | . . . Special Melee Weapon . | . . . Unidentified Prototypes 1 | . . 1 Parts Lost 9 | . 3 6 Power . | . . . Propulsion 3 | . 1 2 Utility 2 | . 1 1 Weapon 4 | . 1 3 Highest Loss Streak 3 | . 2 3 To Critical Strikes . | . . . Average Slot Usage (%) 91 | . 97 81 Engine 12 | . 14 10 Treads 24 | . 28 19 Device 6 | . 1 15 Storage 12 | . 14 11 Protection 8 | . 10 3 Energy Gun 6 | . 2 14 Energy Cannon 9 | . 11 6 Ballistic Gun 9 | . 14 1 Peak Build Rating 15 | 6 7 15 Average Rating 8 | 4 6 11 On Entrance 4 | . 6 7 Naked Turns . | . . . Heaviest Build 38 | 13 32 38 Greatest Support 40 | 40 40 40 Greatest Overweight (x) 10 | 1 . 10 Average Overweight (x) . | . . . Largest Inventory Capacity 15 | 8 15 15 Average Capacity 11 | 7 8 15 Most Carried 13 | 2 9 13 Average Carried 7 | . 6 10 Final Capacity 15 | 8 15 15 Final Carried 12 | 2 7 12 Class Distribution -------------------- 86% | Mutant 13% | Scavenger-Mutant Dominant Class ---------------- Mutant | -10/Materials Mutant | -9/Materials Resources | -11 -10 -9 ----------- Run | Yrd Mat Mat Matter Collected 873 | 237 368 268 Remotely . | . . . Salvage Created 1628 | . 859 769 Parts 92 | . 49 43 Haulers Intercepted 3 | . 1 2 Recyclers Shooed . | . . . Parts Field Recycled . | . . . Retrieved Matter . | . . . Parts Self-Destructed . | . . . Prevented . | . . . Kills | -11 -10 -9 ------- Run | Yrd Mat Mat Combat Hostiles Destroyed 34 | . 19 15 Guns 15 | . 4 11 Cannons 18 | . 15 3 Classes Destroyed 8 | . 5 3 Worker 3 | . 3 . Hauler 3 | . 1 2 Watcher 3 | . 1 2 Swarmer 7 | . 3 4 Grunt 22 | . 16 6 Brawler 1 | . . 1 Duelist 1 | . . 1 Sentry 3 | . . 3 Best Kill Streak 6 | . 4 6 Combat Bots Only 6 | . 3 6 Max Kills in Single Turn 2 | . 2 1 Gunslinging . | . . . Exploded . | . . . Melee . | . . . Uniques/NPCs Destroyed . | . . . Combat | -11 -10 -9 -------- Run | Yrd Mat Mat Hostile Shots Fired 188 | . 109 79 Missed 55 | . 24 31 Damage Taken 1675 | . 875 800 Core 347 | . 233 114 Absorbed by Shields . | . . . Regen/Repaired (Parts) 55 | . 55 . Core Remaining (%) 53 | 100 6 . Volleys Fired 130 | . 84 46 Largest 2 | . 2 2 Hottest 105 | . 100 105 Shots Fired 238 | . 149 89 Gun 136 | . 65 71 Cannon 102 | . 84 18 Launcher . | . . . Special . | . . . Kinetic 58 | . 50 8 Thermal 127 | . 99 28 Explosive . | . . . Electromagnetic 53 | . . 53 Robot Hit Streak 18 | . 18 13 Robot Miss Streak 4 | . 4 3 Penetration Max . | . . . Secondary Targets 1 | . . 1 Max Gunslinging Chain 1 | . . 1 Shots Hit Robots 140 | . 75 65 Core Hits 68 | . 34 34 Critical Kills . | . . . Critical Parts Destroyed . | . . . Critical Strikes . | . . . Melee Attacks . | . . . Impact . | . . . Slashing . | . . . Piercing . | . . . Sneak Attacks . | . . . Combat Hostiles . | . . . Follow-up Attacks . | . . . Damage Inflicted 2255 | . 1189 1066 Guns 1199 | . 416 783 Cannons 958 | . 766 192 Explosions 86 | . . 86 Melee . | . . . Ramming 12 | . 7 5 Kinetic 352 | . 295 57 Thermal 1266 | . 887 379 Explosive . | . . . Electromagnetic 625 | . . 625 Impact . | . . . Slashing . | . . . Piercing . | . . . Highest Corruption 10 | . . 10 Average Corruption 9 | . . 9 Corruption Purged . | . . . Corruption Blocked . | . . . Effects 10 | . . 10 Matter Fused 3 | . . 3 Heat Flow Errors 1 | . . 1 Parts Rejected 1 | . . 1 Parts Fused 1 | . . 1 Data Loss (minor) 2 | . . 2 Weapon Failures 2 | . . 2 Overload Shots . | . . . Overflow Damage 8 | . 8 . Projectiles 8 | . 8 . Explosions . | . . . Melee . | . . . Knockbacks . | . . . Impact . | . . . Kinetic . | . . . Secondary . | . . . Self-Inflicted Damage . | . . . Shots . | . . . Rammed 3 | . 2 1 Targets Rammed 4 | . 3 1 Kicked . | . . . Crushed 1 | . 1 . Highest Temperature 328 | . 328 186 Average Temperature 93 | . 106 59 Received Heat Transfer 600 | . 339 261 Effects 3 | . 3 . Shutdowns 1 | . 1 . Interference 2 | . 2 . Siege Activations . | . . . Robots Corrupted 1 | . . 1 Combat Hostiles 1 | . . 1 Parts Fried 5 | . . 5 Impact Corruptions . | . . . Robots Melted . | . . . Combat Hostiles . | . . . Parts Melted . | . . . Heat Transferred 2685 | . 1903 782 Parts Sabotaged . | . . . Parts Stolen . | . . . Parts Stripped . | . . . Power Chain Reactions 1 | . . 1 Alert | -11 -10 -9 ------- Run | Yrd Mat Mat Peak Influence 396 | . 396 172 Initial 116 | . . 116 Average 104 | . 132 72 Maximum Alert Level 1 | . 1 . Low Security (%) 77 | 100 62 100 Level 1 22 | . 37 . Level 2 . | . . . Level 3 . | . . . Level 4 . | . . . Level 5 . | . . . High Security . | . . . Max Security . | . . . Squads Dispatched 6 | . 4 2 Investigation 5 | . 3 2 Extermination . | . . . Reinforcement 1 | . 1 . Assault . | . . . Garrison . | . . . Intercept . | . . . Searches Triggered . | . . . Construction Impeded . | . . . Haulers Reinforced . | . . . Active Scanning Responses . | . . . Cargo Convoy Interrupts . | . . . Stealth | -11 -10 -9 --------- Run | Yrd Mat Mat Distress Signals 2 | . . 2 Communications Jammed . | . . . Distress Signals . | . . . Times Spotted 46 | . 23 23 Peak Tracking Total 7 | . 4 7 Tactical Retreats 3 | . . 3 Traps | -11 -10 -9 ------- Run | Yrd Mat Mat Traps Triggered 1 | . 1 . Indirectly . | . . . Trap Hack Attempts . | . . . Triggered . | . . . Disarmed . | . . . Reprogrammed . | . . . Reused . | . . . Traps Extracted . | . . . Installed . | . . . Triggered . | . . . Machines | -11 -10 -9 ---------- Run | Yrd Mat Mat Machines Disabled 2 | . 1 1 Max in Single Turn 1 | . 1 1 Machines Repaired . | . . . Machines Dismantled . | . . . Machines Sabotaged . | . . . Overloaded Fab Kills . | . . . Hacking | -11 -10 -9 --------- Run | Yrd Mat Mat Machines Accessed 9 | . 4 5 Terminals 7 | . 3 4 Fabricators . | . . . Repair Stations 1 | . 1 . Recycling Units . | . . . Scanalyzers 1 | . . 1 Garrison Access . | . . . Total Hacks 36 | . 14 22 Successful 15 | . 5 10 Failed 21 | . 9 12 Catastrophic 1 | . 1 . Database Lockouts . | . . . Manual 20 | . 4 16 Terminals 32 | . 11 21 Fabricators . | . . . Repair Stations 3 | . 3 . Recycling Units . | . . . Scanalyzers 1 | . . 1 Garrison Access . | . . . Terminal Hacks 8 | . 2 6 Robot Analysis 1 | . . 1 Prototype ID Bank 1 | . 1 . Terminal Index 2 | . 1 1 Unreport Threat 2 | . . 2 Recall Investigation 2 | . . 2 Fabricator Hacks . | . . . Repair Station Hacks 2 | . 2 . Scan Component 1 | . 1 . Repair 1 | . 1 . Recycling Unit Hacks . | . . . Scanalyzer . | . . . Garrison Access Hacks . | . . . Unauthorized Hacks 5 | . 1 4 Terminals 4 | . 1 3 Botnet 4 | . 1 3 Fabricators . | . . . Repair Stations . | . . . Recycling Units . | . . . Scanalyzers 1 | . . 1 Extract 1 | . . 1 Garrison Access . | . . . Data Cores Recovered . | . . . Used . | . . . Hacking Detections 8 | . 4 4 Full Trace Events 3 | . 2 1 Feedback Events . | . . . Feedback Blocked . | . . . Robot Schematics Acquired . | . . . Robots Built . | . . . Authchips . | . . . Time . | . . . Total Robot Build Rating . | . . . Part Schematics Acquired 1 | . . 1 Parts Built . | . . . Authchips . | . . . Time . | . . . Total Part Build Rating . | . . . Parts Repaired 1 | . 1 . Time 13 | . 13 . Parts Recycled . | . . . Recycled Matter . | . . . Retrieved Matter . | . . . Retrieved Components . | . . . Parts Scanalyzed . | . . . Part Schematics Acquired . | . . . Parts Damaged . | . . . Bothacking | -11 -10 -9 ------------ Run | Yrd Mat Mat Used RIF Installer . | . . . Robots Hacked . | . . . Non-combat . | . . . Combat . | . . . Robot Hacks Applied . | . . . Relay Couplers Released . | . . . Fabnet Peak Effective % . | . . . Robots Rewired . | . . . Allies Hacked . | . . . Hacks Repelled . | . . . Allies | -11 -10 -9 -------- Run | Yrd Mat Mat Total Allies . | . . . Largest Group . | . . . Highest-Rated Group . | . . . Highest-Rated Ally . | . . . Total Orders . | . . . Ally Attacks . | . . . Total Damage . | . . . Kills . | . . . Allies Corrupted . | . . . Allies Melted . | . . . Intel | -11 -10 -9 ------- Run | Yrd Mat Mat Robot Analysis Total 1 | . . 1 Derelict Logs Recovered . | . . . Drone Launches . | . . . Drone Recoveries . | . . . Exploration | -11 -10 -9 ------------- Run | Yrd Mat Mat Turns Passed 1524 | 71 918 535 Spaces Moved 579 | 39 349 191 Core 6 | 4 . 2 Treads 573 | 35 349 189 Legs . | . . . Wheels . | . . . Hover . | . . . Flight . | . . . Fastest Speed 50 | 50 160 160 Average Speed 161 | 152 160 167 Slowest Speed 550 | 160 160 550 Overloaded Moves . | . . . Propulsion Burnouts . | . . . Robots Hopped . | . . . Cave-ins Triggered . | . . . Exploration Rate (%) 26 | 5 52 22 Regions Visited 2 Branch Regions . Pre-discovered Areas . | . . . Known Exits Taken . | . . . Unknown Exits Taken 2 | 1 1 . Scrap Searched . | . . . Spaces Dug . | . . . Terrain Destroyed 8 | . 4 4 Melee . | . . . Projectile . | . . . AOE 8 | . 4 4 Terrain Rammed . | . . . Walls Destroyed . | . . . Machines Disabled . | . . . Actions | -11 -10 -9 --------- Run | Yrd Mat Mat Total 916 | 48 557 311 Wait 148 | . 102 46 Move 577 | 38 348 191 Hop . | . . . Pick Up 17 | 2 7 8 Fast Attach 20 | 7 4 9 Attach 5 | . 2 3 Detach 1 | . . 1 Swap 6 | . 3 3 Drop 8 | 1 4 3 Fire 130 | . 84 46 Melee . | . . . Ram . | . . . Kick . | . . . Crush 4 | . 3 1 Escape Stasis . | . . . Rewire . | . . . Trap . | . . . Miscellaneous . | . . . Route ------- -11/Scrapyard -10/Materials -9/Materials History --------- Turn | Location | Event 19 | -11/Scrapyard | Discovered new exit (range 15) 72 | -11/Scrapyard | Entered Materials 303 | -10/Materials | Build established: Mutant 385 | -10/Materials | Discovered new exit (range 15) 627 | -10/Materials | Repaired Lgt. Armor Plating 788 | -10/Materials | Core integrity fell below 50% 926 | -10/Materials | Core integrity fell below 20% 990 | -10/Materials | Entered another Materials area 990 | -9/Materials | Evolved 2 slots: Propulsion x1, Utility x1 1288 | -9/Materials | System corruption reached 10% 1318 | -9/Materials | Lost 3 parts (1n1u1w) 1525 | -9/Materials | Self-destructed Last Messages --------------- 01502_ K-01 Serf collects debris. 01503_ U-05 Engineer lays Concrete. 01505_ K-01 Serf collects debris. 01506_ U-05 Engineer lays Concrete. 01506_ Critical hit (Burn: +37). 01507_ U-05 Engineer lays Concrete. 01507_ Y-45 Defender destroyed. 01508_ System corrupted: Hvy. EM Pulse Gun fused. 01508_ U-05 Engineer lays Concrete. 01508_ K-01 Serf collects debris. 01509_ U-05 Engineer lays Concrete. 01512_ K-01 Serf collects debris. 01512_ U-05 Engineer lays Concrete. 01515_ U-05 Engineer builds a Wall. 01516_ K-01 Serf collects debris. 01516_ Hvy. EM Pulse Gun destroyed. 01519_ U-05 Engineer builds a Wall. 01523_ K-01 Serf collects debris. 01524_ U-05 Engineer lays Concrete. Map ----- +----------------------------------------------------+ | ?????????????? # *######## """ T ##### | | ??????????????## =[#% " | | ??????????????## *%+%= !! | | ??????????????## *#/ *%= | | ??????????????## # ##################+# | | ??????????????## # ###########??# ! | | ??????????????## # ##???????????# * | | ??????????????## # ##???????????# "S | | ????????? # ??########## ##???????????# """ | | ????????? # ##???????????# "" | | ????????? # ???###+##+##+## ##???????????# | | ???????????????## # ##???????????####### | | ???????????????????? # ##?????????????????? | | ???????????????## # ####???????????????? | | ???????????????## # #########??????????? | | ???????????????############ # #######??????????? | | ???????????????##### # # ##??????????? | | ??????????????????## # # ##??????????? | | ??????????????????## """ # # [% ##??????????? | | ??????????????????##* """ + + ##??????????? | | ??????????????????## """ # # ##??????????? | | ??????????????????## # # ##??????????? | | ?????????## ? ############# #########??????????? | | ?????????## k###### * k #########??????????? | | ?????????## g [%%! ##?????????????????? | | ???????? ###### !%[u@ ##?????????????????? | | ????????????? ###### !%#;;######?????????????????? | | ??????????????????## ## ?????????????????? | | ??????????????????## ## "??????????????????????? | | ??????????????????## ## ""?????????????????????? | | ????????????????? # # ""?????????????????????? | | ????????????????? # # ????????????????????? | | ????????????????? # ? + """????????????????????? | | ????????????????? # ? # "??????????????????????? | | ????????????????? # ? # "??????????????????????? | | ????????????????? ## ??# ?????????????????????? | | ?????????????????### ??####?????????????????????? | | ?????????????????? # ??? """?????????????????????? | | ?????????????????? + ????????????????????????????? | | ?????????????????? # ????????????????????????????? | | ?????????????????????????????????????????????????? | | ?????????????????????????????????????????????????? | | ?????????????????????????????????????????????????? | | ?????????????????????????????????????????????????? | | ?????????????????????????????????????????????????? | | ?????????????????????????????????????????????????? | | ?????????????????????????????????????????????????? | | ?????????????????????????????????????????????????? | | ?????????????????????????????????????????????????? | | ?????????????????????????????????????????????????? | +----------------------------------------------------+ Best States ------------- Heat Dissipation 38 Energy Generation 14 Energy Capacity 280 Matter Stores 300 Matter Capacity 300 Sight Range 16 Terrain Scan Density 10 Armor Coverage 150 Evasion (%) 40 Recoil Reduction 2 Item Schematics ----------------- Disposable Heat Sink | -9/Materials | Extracted Robot Schematics ------------------ None Fabricated ------------ Nothing Alien Tech Used ----------------- None Achievements -------------- None Challenges ------------ None Game ------ Seed MetafieldThiefBoregun Manual? 0 Play Time 00:18:28 Cumulative 86.8 hours Start 2024.09.18 @ 00:45:49 End 2024.09.18 @ 21:21:32 Sessions 3 Manual Loads 0 Difficulty Rogue Special Mode None Game No. 55 Rogue 19 Adventurer 36 Explorer 0 Win Type - Total 2 Types 2/0/0/0/0/0/0/0/0 Lore% 46 Gallery% 52 Achievement% 48 Wizard Run 0 Options --------- Layout 1 ASCII 0 Keyboard 0 Movement Numpad Keybinds 0 Fullscreen 1 Font 48/Smallcaps Map View 50x35 Zoom Use 0% Tactical HUD 1 Map Filters NONE Filters NONE Steam 1 RUN: 8d55097b-ad06-4876-b34d-a69f887b0d47